Cogmind - Beta 13 @@@ ROGUE MODE // 2024.04.17 @ 17:51:52 Player: Gold Spoon Result: Self-destructed Performance ------------- Evolutions (1) 500 Regions Visited (3) 600 Robots Destroyed (33) 165 Value Destroyed (737) 737 Prototype IDs (2) 40 Alien Tech Used (0) 0 Bonus (52) 52 TOTAL SCORE: 2094 Bonus ------- Follower Combat Kills 63 Friendly Fire -11 Cogmind --------- Core Integrity 243/400 Matter 300/300 Energy 280/280 System Corruption 1% Temperature Cool (0) Movement Rolling (115) Ox1 Location -9/Materials Parts ------- > --- POWER (1) -------- Cooled Ion Engine > --- PROPULSION (2) --- Compact Wheel > --- UTILITY (4) ------ Small Storage Unit Signal Interpreter > --- WEAPON (2) ------- Minigun Minigun > --- INVENTORY (8) ---- Light Ion Engine Hover Unit ECM Suite Minigun Minigun Rocket Launcher Peak State ------------ > --- POWER ------------ Light Ion Engine > --- PROPULSION ------- Hover Unit Hover Unit > --- UTILITY ---------- Small Storage Unit Signal Interpreter Bomb Drone Bay > --- WEAPON ----------- Assault Rifle Enhanced Flamer > --- INVENTORY -------- Light Ion Engine ECM Suite [Rating: 23] Favorites ----------- Power Light Ion Engine Engine Light Ion Engine Propulsion Hover Unit Wheel Compact Wheel Hover Unit Hover Unit Utility Small Storage Unit Device Bomb Drone Bay Storage Small Storage Unit Processor Signal Interpreter Weapon Assault Rifle Ballistic Gun Assault Rifle Launcher Rocket Launcher Special Weapon Enhanced Flamer Build | -11 -10 -10 -9 ------- Run | Yrd Mat Min Mat Slots Evolved 2 | . . . 2 Power . | . . . . Propulsion . | . . . . Utility 2 | . . . 2 Weapon . | . . . . Parts Attached 30 | 6 4 6 14 Power 6 | 1 . . 5 Engine 6 | 1 . . 5 Core . | . . . . Reactor . | . . . . Propulsion 10 | 2 3 1 4 Treads . | . . . . Leg . | . . . . Wheel 4 | 2 . . 2 Hover 6 | . 3 1 2 Flight . | . . . . Utility 7 | 1 1 3 2 Device 2 | . . 1 1 Storage 3 | 1 . 1 1 Processor 2 | . 1 1 . Hackware . | . . . . Protection . | . . . . Artifact . | . . . . Weapon 7 | 2 . 2 3 Energy Gun . | . . . . Energy Cannon . | . . . . Ballistic Gun 5 | 2 . 1 2 Ballistic Cannon . | . . . . Launcher 1 | . . . 1 Special Weapon 1 | . . 1 . Impact Weapon . | . . . . Slashing Weapon . | . . . . Piercing Weapon . | . . . . Special Melee Weapon . | . . . . Unidentified Prototypes 2 | . . 1 1 Parts Lost 10 | . 1 . 9 Power 1 | . . . 1 Propulsion 5 | . 1 . 4 Utility 2 | . . . 2 Weapon 2 | . . . 2 Highest Loss Streak 3 | . 1 . 3 To Critical Strikes . | . . . . Average Slot Usage (%) 75 | . 93 85 64 Engine 10 | . 14 14 7 Wheel 3 | . 8 . 4 Hover 13 | . 18 26 5 Device 5 | . . 11 3 Storage 11 | . 14 2 16 Processor 8 | . 9 2 11 Ballistic Gun 14 | . 28 14 10 Launcher 2 | . . . 4 Special Weapon 4 | . . 13 1 Naked Turns . | . . . . Heaviest Build 20 | 10 10 15 20 Greatest Support 32 | 32 32 12 32 Greatest Overweight (x) 4 | . 1 1 4 Average Overweight (x) 1 | . . . 1 Largest Inventory Capacity 8 | 8 8 8 8 Average Capacity 7 | 6 8 5 8 Most Carried 8 | 5 6 8 7 Average Carried 3 | 1 3 4 4 Final Capacity 8 | 8 8 8 8 Final Carried 6 | 1 5 4 6 Class Distribution -------------------- 100% | Mutant Dominant Class ---------------- Mutant | -10/Materials Mutant | -10/Mines Mutant | -9/Materials Resources | -11 -10 -10 -9 ----------- Run | Yrd Mat Min Mat Matter Collected 1063 | 243 76 91 653 Remotely . | . . . . Salvage Created 780 | . 133 43 604 Parts 68 | . 13 2 53 Haulers Intercepted . | . . . . Recyclers Shooed 1 | . . 1 . Parts Field Recycled . | . . . . Retrieved Matter . | . . . . Parts Self-Destructed . | . . . . Prevented . | . . . . Kills | -11 -10 -10 -9 ------- Run | Yrd Mat Min Mat Combat Hostiles Destroyed 25 | . 3 3 19 Guns 20 | . 3 2 15 Cannons 1 | . . . 1 AOE 3 | . . . 3 Classes Destroyed 5 | . 4 . 1 Worker 1 | . 1 . . Watcher 7 | . 2 . 5 Swarmer 13 | . 2 2 9 Grunt 6 | . 1 1 4 Sentry 6 | . . . 6 Best Kill Streak 5 | . 3 1 5 Combat Bots Only 5 | . 3 1 5 Max Kills in Single Turn 2 | . 1 1 2 Gunslinging 1 | . . . 1 Exploded 1 | . . . 1 Melee . | . . . . Uniques/NPCs Destroyed . | . . . . Combat | -11 -10 -10 -9 -------- Run | Yrd Mat Min Mat Hostile Shots Fired 171 | . 40 27 104 Missed 50 | . 13 8 29 Damage Taken 1496 | . 272 201 1023 Core 264 | . 76 31 157 Absorbed by Shields . | . . . . Regen/Repaired (Parts) 1 | . 1 . . Core Remaining (%) 78 | 100 . 57 . Volleys Fired 96 | . 23 15 58 Largest 2 | . 2 2 2 Hottest 100 | . 40 100 100 Shots Fired 175 | . 46 29 100 Gun 141 | . 46 15 80 Cannon . | . . . . Launcher 7 | . . . 7 Special 27 | . . 14 13 Kinetic 141 | . 46 15 80 Thermal 27 | . . 14 13 Explosive 7 | . . . 7 Electromagnetic . | . . . . Robot Hit Streak 8 | . 7 4 8 Robot Miss Streak 5 | . 5 4 5 Penetration Max . | . . . . Secondary Targets 3 | . . . 3 Max Gunslinging Chain 1 | . . . 1 Shots Hit Robots 98 | . 25 13 60 Core Hits 53 | . 15 4 34 Critical Kills 1 | . . . 1 Critical Parts Destroyed 1 | . . 1 . Critical Strikes 4 | . . 3 1 Burn 2 | . . 2 . Destroy 2 | . . 1 1 Melee Attacks . | . . . . Impact . | . . . . Slashing . | . . . . Piercing . | . . . . Sneak Attacks . | . . . . Combat Hostiles . | . . . . Follow-up Attacks . | . . . . Damage Inflicted 1463 | . 253 216 994 Guns 1123 | . 232 99 792 Cannons . | . . . . Explosions 133 | . . . 133 Melee . | . . . . Ramming 41 | . 21 19 1 Kinetic 1123 | . 232 99 792 Thermal 166 | . . 98 68 Explosive 133 | . . . 133 Electromagnetic . | . . . . Impact . | . . . . Slashing . | . . . . Piercing . | . . . . Highest Corruption 1 | . . . 1 Average Corruption 1 | . . . 1 Corruption Purged . | . . . . Corruption Blocked . | . . . . Effects 8 | . . . 8 Message Errors 2 | . . . 2 Matter Fused 5 | . . . 5 Heat Flow Errors 1 | . . . 1 Overload Shots . | . . . . Overflow Damage 10 | . . 10 . Projectiles 10 | . . 10 . Explosions . | . . . . Melee . | . . . . Knockbacks . | . . . . Impact . | . . . . Kinetic . | . . . . Secondary . | . . . . Self-Inflicted Damage 25 | . 10 8 7 Shots 1 | . . . 1 Rammed 7 | . 2 4 1 Targets Rammed 7 | . 2 4 1 Kicked . | . . . . Crushed . | . . . . Highest Temperature 257 | . 33 234 257 Average Temperature 65 | . 9 89 70 Received Heat Transfer 423 | . 78 33 312 Effects 2 | . . 1 1 Energy Bleed 2 | . . 1 1 Siege Activations . | . . . . Robots Corrupted . | . . . . Combat Hostiles . | . . . . Parts Fried . | . . . . Impact Corruptions . | . . . . Robots Melted 1 | . . 1 . Combat Hostiles 1 | . . 1 . Parts Melted 2 | . . 1 1 Heat Transferred 1520 | . . 1040 480 Parts Sabotaged . | . . . . Parts Stolen . | . . . . Parts Stripped . | . . . . Power Chain Reactions . | . . . . Alert | -11 -10 -10 -9 ------- Run | Yrd Mat Min Mat Peak Influence 340 | . 189 227 340 Initial 88 | . . . 88 Average 128 | . 103 51 184 Maximum Alert Level 1 | . . 1 1 Low Security (%) 73 | 100 100 95 51 Level 1 26 | . . 4 48 Level 2 . | . . . . Level 3 . | . . . . Level 4 . | . . . . Level 5 . | . . . . High Security . | . . . . Max Security . | . . . . Squads Dispatched 6 | . 2 . 4 Investigation 3 | . 2 . 1 Extermination . | . . . . Reinforcement 3 | . . . 3 Assault . | . . . . Garrison . | . . . . Intercept . | . . . . Searches Triggered . | . . . . Construction Impeded . | . . . . Haulers Reinforced . | . . . . Active Scanning Responses . | . . . . Cargo Convoy Interrupts . | . . . . Stealth | -11 -10 -10 -9 --------- Run | Yrd Mat Min Mat Distress Signals 1 | . . . 1 Communications Jammed . | . . . . Distress Signals . | . . . . Times Spotted 62 | . 11 8 43 Peak Tracking Total 6 | . 4 3 6 Tactical Retreats 8 | . 1 . 7 Traps | -11 -10 -10 -9 ------- Run | Yrd Mat Min Mat Traps Triggered 1 | . . . 1 Indirectly . | . . . . Trap Hack Attempts . | . . . . Triggered . | . . . . Disarmed . | . . . . Reprogrammed . | . . . . Reused . | . . . . Traps Extracted . | . . . . Installed . | . . . . Triggered . | . . . . Machines | -11 -10 -10 -9 ---------- Run | Yrd Mat Min Mat Machines Disabled 2 | . . . 2 Max in Single Turn 1 | . . . 1 Machines Repaired . | . . . . Machines Dismantled . | . . . . Machines Sabotaged . | . . . . Overloaded Fab Kills . | . . . . Hacking | -11 -10 -10 -9 --------- Run | Yrd Mat Min Mat Machines Accessed 9 | . 5 1 3 Terminals 7 | . 4 . 3 Fabricators . | . . . . Repair Stations 1 | . 1 . . Recycling Units . | . . . . Scanalyzers . | . . . . Garrison Access . | . . . . Total Hacks 25 | . 14 1 10 Successful 10 | . 5 1 4 Failed 15 | . 9 . 6 Catastrophic 3 | . 2 . 1 Database Lockouts . | . . . . Manual . | . . . . Terminals 21 | . 11 . 10 Fabricators . | . . . . Repair Stations 3 | . 3 . . Recycling Units . | . . . . Scanalyzers . | . . . . Garrison Access . | . . . . Terminal Hacks 8 | . 3 1 4 Robot Analysis 1 | . 1 . . Open Door 1 | . . 1 . Branch Access Points 2 | . 1 . 1 Emergency Access Points 1 | . . . 1 Alert Level 1 | . . . 1 Locate Traps 2 | . 1 . 1 Fabricator Hacks . | . . . . Repair Station Hacks 2 | . 2 . . Scan Component 1 | . 1 . . Repair 1 | . 1 . . Recycling Unit Hacks . | . . . . Scanalyzer . | . . . . Garrison Access Hacks . | . . . . Unauthorized Hacks . | . . . . Terminals . | . . . . Fabricators . | . . . . Repair Stations . | . . . . Recycling Units . | . . . . Scanalyzers . | . . . . Garrison Access . | . . . . Data Cores Recovered . | . . . . Used . | . . . . Hacking Detections 7 | . 5 . 2 Full Trace Events 4 | . 3 . 1 Feedback Events . | . . . . Feedback Blocked . | . . . . Robot Schematics Acquired . | . . . . Robots Built . | . . . . Authchips . | . . . . Time . | . . . . Total Robot Build Rating . | . . . . Part Schematics Acquired . | . . . . Parts Built . | . . . . Authchips . | . . . . Time . | . . . . Total Part Build Rating . | . . . . Parts Repaired 1 | . 1 . . Time 36 | . 36 . . Parts Recycled . | . . . . Recycled Matter . | . . . . Retrieved Matter . | . . . . Retrieved Components . | . . . . Parts Scanalyzed . | . . . . Part Schematics Acquired . | . . . . Parts Damaged . | . . . . Bothacking | -11 -10 -10 -9 ------------ Run | Yrd Mat Min Mat Used RIF Installer . | . . . . Robots Hacked . | . . . . Non-combat . | . . . . Combat . | . . . . Robot Hacks Applied . | . . . . Relay Couplers Released . | . . . . Fabnet Peak Effective % . | . . . . Robots Rewired . | . . . . Allies Hacked . | . . . . Hacks Repelled . | . . . . Allies | -11 -10 -10 -9 -------- Run | Yrd Mat Min Mat Total Allies 2 | . . 2 . Largest Group 2 | . . 2 1 Highest-Rated Group 42 | . . 42 31 Highest-Rated Ally 31 | . . 31 31 Total Orders . | . . . . Ally Attacks 30 | . . 20 10 Total Damage 316 | . . 316 . Kills 5 | . . 5 . Allies Corrupted . | . . . . Allies Melted . | . . . . Intel | -11 -10 -10 -9 ------- Run | Yrd Mat Min Mat Robot Analysis Total 1 | . 1 . . Derelict Logs Recovered 1 | . . 1 . Drone Launches 10 | . . . 10 Drone Recoveries . | . . . . Exploration | -11 -10 -10 -9 ------------- Run | Yrd Mat Min Mat Turns Passed 2470 | 46 415 721 1288 Spaces Moved 1749 | 41 392 591 725 Core 217 | 15 . . 202 Treads . | . . . . Legs . | . . . . Wheels 410 | 26 111 . 273 Hover 1122 | . 281 591 250 Flight . | . . . . Fastest Speed 50 | 50 56 56 100 Average Speed 118 | 81 77 108 149 Slowest Speed 250 | 100 120 120 250 Overloaded Moves . | . . . . Propulsion Burnouts . | . . . . Robots Hopped . | . . . . Cave-ins Triggered . | . . . . Exploration Rate (%) 57 | 4 55 99 71 Regions Visited 3 Branch Regions 1 Pre-discovered Areas . | . . . . Known Exits Taken 2 | . 1 1 . Unknown Exits Taken 1 | 1 . . . Scrap Searched 3 | . . 3 . Spaces Dug . | . . . . Terrain Destroyed 63 | . . . 63 Melee . | . . . . Projectile . | . . . . AOE 63 | . . . 63 Terrain Rammed . | . . . . Walls Destroyed . | . . . . Machines Disabled . | . . . . Actions | -11 -10 -10 -9 --------- Run | Yrd Mat Min Mat Total 1974 | 53 463 633 825 Wait 55 | . 37 5 13 Move 1746 | 40 391 590 725 Hop . | . . . . Pick Up 31 | 7 6 6 12 Fast Attach . | . . . . Attach 21 | 6 2 4 9 Detach 1 | . . . 1 Swap 9 | . 2 2 5 Drop 8 | . . 7 1 Fire 96 | . 23 15 58 Melee . | . . . . Ram 7 | . 2 4 1 Kick . | . . . . Crush . | . . . . Escape Stasis . | . . . . Rewire . | . . . . Trap . | . . . . Miscellaneous . | . . . . Route ------- -11/Scrapyard -10/Materials (discovered 2 exits: *Min x2) -10/Mines (discovered 2 exits: *Mat x2) -9/Materials (discovered 4 exits: *Mat x2 / *Min x2) History --------- Turn | Location | Event 5 | -11/Scrapyard | Discovered new exit (range 16) 47 | -11/Scrapyard | Entered Materials 120 | -10/Materials | Discovered new exit (range 10) 122 | -10/Materials | Identified exit to Mines 302 | -10/Materials | Build established: Mutant 422 | -10/Materials | Repaired Broken Hover Unit 462 | -10/Materials | Entered Mines 513 | -10/Mines | A weapon hastily lodged in a ceiling crevice suddenly fell to the ground 592 | -10/Mines | Found the Drone Emporium 598 | -10/Mines | Found Prototype Device 600 | -10/Mines | Identified Bomb Drone Bay 760 | -10/Mines | Learned Materials garrison access intel 893 | -10/Mines | Discovered new exit (range 9) 1161 | -10/Mines | Discovered new exit (range 14) 1178 | -10/Mines | Identified exit to Materials 1183 | -10/Mines | Entered Materials 1183 | -9/Materials | Accompanied by 1 ally 1183 | -9/Materials | Evolved 2 slots: Utility x2 1188 | -9/Materials | Led the pair of lost Derelicts to an unsafe place 1392 | -9/Materials | Lost 3 allies 1450 | -9/Materials | Lost 3 parts (1p1n1w) 1453 | -9/Materials | Lost 4 allies 1465 | -9/Materials | Discovered new exit (range 15) 1498 | -9/Materials | Lost 3 allies 1530 | -9/Materials | Identified exit to Materials 1797 | -9/Materials | Discovered new exit (range 16) 2099 | -9/Materials | Identified exit to Mines 2234 | -9/Materials | Discovered exit to Materials (range 12) 2471 | -9/Materials | Self-destructed Last Messages --------------- R-06 Scavenger collects Flight Unit. R-06 Scavenger collects Lgt. Assault Rifle. K-01 Serf collects debris. System corrupted: Matter fused (-10). S-10 Pest destroyed. Switching to secondary target: S-10 Pest. S-10 Pest destroyed. Com. Matter Pod destroyed. S-10 Pest destroyed. U-05 Engineer builds a Door. Y-45 Defender destroyed. Acquired 32 matter. R-06 Scavenger collects Flight Unit. Acquired 8 matter. Y-45 Defender destroyed. Acquired 8 matter. R-06 Scavenger collects Heat Sink. System corrupted: Matter fused (-9). Acquired 9 matter. R-06 Scavenger collects Lgt. Treads. Map ----- +----------------------------------------------------+ | ???????????????????????????????? | | ???????????????????????????????? | | ?????????????????????????????????##### | | ?????????????????????????????????????? | | ?????????????????????????????????????? | | ?????????????????????????????????????? | | ???????????????????????????##########? | | ???????????????????????????# %## | | ???????????????????????????# """%+[ | | ???????????????????????????# "R"%## | | ???????????????????????????# " "!#? | | ???????????????????????????# =% #? | | ?????????????????????#+#???# """ [* #? | | ?????????????????????# #???# """ #? | | ???????????########### #???# """ #? | | ???????????# ! ! # #???# % #? | | ???????????# # #########+##### | | ???????????# # | | ??????????????"""""" + | | ??????????????"""""" # | | ??????????????"""""" ### | | ??????????????"""""" #?# | | ??????????????"""""" #?# "T" | | ???###################?# #### | | ??# ########## #??# | | ??# """ """ @/ #??# #### | | ??# """ """ #### #######??# #??# | | ??# """ """r #??# #????????## ##??### | | ??# [ #??# #?????????# #?????# | | ??# %[*#??# #?????????# #?????# | | ??# =[%%[#??#+#?????????# #?????# | | ??#########/###??????????????? #?????# | | ??########=s #???????????????? #?????# | | ?# # #???????????????? ??????# | | ?# + #???????????????????????# | | ?# # #???????????????????????? | | ??######## ##??????????????????????? | | ????????# ##+###?????????????????? | | ????????# #????????????? | | ????????# +????????????? | | ????????# #????????????? | | ????????# ###########????????????? | | ????????## ##??????????????????????? | | ?????????# #???????????????????????? | | ?????????+ +???????????????????????? | | ?????????# #???????????????????????? | | ?????????# #???????????????????????? | | ?????????# #???????????????????????? | | ?????????# #???????????????????????? | | ?????????# #???????????????????????? | +----------------------------------------------------+ Best States ------------- Heat Dissipation 28 Energy Generation 14 Energy Capacity 280 Matter Stores 450 Matter Capacity 450 Sight Range 16 Terrain Scan Density 10 Evasion (%) 53 Item Schematics ----------------- None Robot Schematics ------------------ None Fabricated ------------ Nothing Alien Tech Used ----------------- None Achievements -------------- None Challenges ------------ None Game ------ Seed WaveDimensionalMallet Manual? 0 Play Time 00:25:48 Cumulative 6.8 hours Start 2024.04.17 @ 17:29:17 End 2024.04.17 @ 17:51:52 Sessions 1 Manual Loads 0 Difficulty Rogue Special Mode None Game No. 9 Rogue 7 Adventurer 2 Explorer 0 Win Type - Total 0 Types 0/0/0/0/0/0/0/0/0 Lore% 16 Gallery% 11 Achievement% 13 Wizard Run 0 Options --------- Layout 1 ASCII 0 Keyboard 0 Movement Mouse Keybinds 0 Fullscreen 1 Font 24/Smallcaps Map View 50x40 Zoom Use 0% Tactical HUD 0 Map Filters NONE Filters NONE Steam 1 RUN: 37908a63-21a9-4412-a361-9464c4e3c5cb